fUSD/lending_fUSD_20250608
["ID","MTS","AMOUNT","RATE_DAILY","PERIOD"]
[364968532,1749364247818,-480.0,0.00019342,2]
[364968533,1749364247826,-480.0,0.00019342,2]
[364968534,1749364247836,-480.0,0.00019342,2]
[364968535,1749364247845,-480.0,0.00019342,2]
[364968536,1749364247854,-480.0,0.00019342,2]
[364968537,1749364247863,-480.0,0.00019342,2]
[364968538,1749364247873,-480.0,0.00019342,2]
[364968539,1749364247882,-480.0,0.00019342,2]
[364968540,1749364247891,-480.0,0.00019342,2]
[364968541,1749364247901,-724.24,0.00019342,2]
[364968542,1749364247911,-1052.94,0.00019342,2]
[364968543,1749364247920,-480.0,0.00019342,2]
[364968544,1749364247930,-480.0,0.00019342,2]
[364968545,1749364247939,-480.0,0.00019342,2]
[364968546,1749364247949,-480.0,0.00019342,2]
[364968547,1749364247958,-480.0,0.00019342,2]
[364968548,1749364247967,-480.0,0.00019342,2]
[364968549,1749364247977,-480.0,0.00019342,2]
[364968550,1749364247987,-589.8,0.00019342,2]
[364968551,1749364247996,-480.0,0.00019342,2]
[364968552,1749364248005,-480.0,0.00019342,2]
[364968553,1749364248014,-480.0,0.00019342,2]
[364968554,1749364248028,-480.0,0.00019342,2]
[364968555,1749364248038,-480.0,0.00019342,2]
[364968556,1749364248048,-480.0,0.00019342,2]
[364968557,1749364248058,-480.0,0.00019342,2]
[364968558,1749364248069,-480.0,0.00019342,2]
[364968559,1749364248079,-480.0,0.00019342,2]
[364968560,1749364248088,-4698.95,0.00019342,2]
[364968561,1749364248099,-480.0,0.00019342,2]
[364968562,1749364248110,-480.0,0.00019342,2]
[364968563,1749364248120,-885.82,0.00019342,2]
[364968564,1749364248129,-480.0,0.00019342,2]
[364968565,1749364248139,-480.0,0.00019342,2]
[364968566,1749364248149,-480.0,0.00019342,2]
[364968567,1749364248159,-695.25,0.00019342,2]
[364968568,1749364248169,-480.0,0.00019342,2]
[364968569,1749364248178,-480.0,0.00019342,2]
[364968570,1749364248188,-480.0,0.00019342,2]
[364968571,1749364248198,-480.0,0.00019342,2]
[364968572,1749364248207,-527.57,0.00019342,2]
[364968573,1749364248217,-480.0,0.00019342,2]
[364968574,1749364248227,-480.0,0.00019342,2]
[364968575,1749364248238,-480.0,0.00019342,2]
[364968576,1749364248247,-647.89,0.00019342,2]
[364968577,1749364248257,-480.0,0.00019342,2]
[364968578,1749364248267,-480.0,0.00019342,2]
[364968579,1749364248276,-480.0,0.00019342,2]
[364968580,1749364248286,-480.0,0.00019342,2]
[364968581,1749364248296,-480.0,0.00019342,2]
[364968582,1749364248306,-480.0,0.00019342,2]
[364968583,1749364248315,-480.0,0.00019342,2]
[364968584,1749364248326,-480.0,0.00019342,2]
[364968585,1749364248335,-1093.87,0.00019342,2]
[364968586,1749364248345,-1598.06,0.00019342,2]
[364968587,1749364248355,-480.0,0.00019342,2]
[364968588,1749364248365,-480.0,0.00019342,2]
[364968589,1749364248375,-480.0,0.00019342,2]
[364968590,1749364248385,-480.0,0.00019342,2]
[364968591,1749364248394,-2139.7,0.00019342,2]
[364968592,1749364248404,-480.0,0.00019342,2]
[364968593,1749364248414,-480.0,0.00019342,2]
[364968594,1749364248424,-480.0,0.00019342,2]
[364968595,1749364248434,-480.0,0.00019342,2]
[364968596,1749364248443,-480.0,0.00019342,2]
[364968597,1749364248452,-890.34,0.00019342,2]
[364968598,1749364248462,-480.0,0.00019342,2]
[364968599,1749364248472,-1984.18,0.00019342,2]
[364968600,1749364248482,-480.0,0.00019342,2]
[364968601,1749364248491,-480.0,0.00019342,2]
[364968602,1749364248500,-480.0,0.00019342,2]
[364968603,1749364248510,-1094.88,0.00019342,2]
[364968604,1749364248519,-279.22947121,0.00019342,2]
[364968605,1749364248529,-530.22,0.00019342,2]
[364968606,1749364248538,-480.0,0.00019342,2]
[364968607,1749364248547,-486.57968505,0.00019342,2]
[364968608,1749364248557,-271.06810046,0.00019342,2]
[364968609,1749364248567,-480.0,0.00019342,2]
[364968610,1749364248576,-442.36362145,0.00019342,2]
[364968611,1749364248586,-480.0,0.00019342,2]
[364968612,1749364248595,-480.0,0.00019342,2]
[364968613,1749364248605,-480.0,0.00019342,2]
[364968614,1749364248614,-4179.8,0.00019342,2]
[364968615,1749364248623,-302.5755717,0.00019342,2]
[364968616,1749364248633,-1034.7,0.00019342,2]
[364968617,1749364248642,-480.0,0.00019342,2]
[364968618,1749364248651,-480.0,0.00019342,2]
[364968619,1749364248662,-480.0,0.00019342,2]
[364968620,1749364248671,-480.0,0.00019342,2]
[364968621,1749364248680,-480.0,0.00019342,2]
[364968622,1749364248690,-480.0,0.00019342,2]
[364968623,1749364248700,-480.0,0.00019342,2]
[364968624,1749364248709,-1937.29,0.00019342,2]
[364968625,1749364248719,-971.4,0.00019342,2]
[364968626,1749364248728,-480.0,0.00019342,2]
[364968627,1749364248738,-480.0,0.00019342,2]
[364968628,1749364248747,-1278.48,0.00019342,2]
[364968629,1749364248757,-3384.73,0.00019342,2]
[364968630,1749364248766,-469.72863107,0.00019342,2]
[364968631,1749364248775,-480.0,0.00019342,2]
[364968632,1749364248786,-840.75,0.00019342,2]
[364968633,1749364248796,-1844.25,0.00019342,2]
[364968634,1749364248806,-480.0,0.00019342,2]
[364968635,1749364248815,-480.0,0.00019342,2]
[364968636,1749364248825,-480.0,0.00019342,2]
[364968637,1749364248835,-480.0,0.00019342,2]
[364968638,1749364248845,-480.0,0.00019342,2]
[364968639,1749364248855,-788.24,0.00019342,2]
[364968640,1749364248865,-480.0,0.00019342,2]
[364968641,1749364248875,-480.0,0.00019342,2]
[364968642,1749364248884,-163.62,0.00019342,2]
[364968643,1749364248894,-480.0,0.00019342,2]
[364968644,1749364248903,-480.0,0.00019342,2]
[364968645,1749364248914,-480.0,0.00019342,2]
[364968646,1749364248924,-480.0,0.00019342,2]
[364968647,1749364248934,-2296.57,0.00019342,2]
[364968648,1749364248944,-480.0,0.00019342,2]
[364968649,1749364248953,-527.16,0.00019342,2]
[364968650,1749364248963,-480.0,0.00019342,2]
[364968651,1749364248973,-480.0,0.00019342,2]
[364968652,1749364248984,-1437.16,0.00019342,2]
[364968653,1749364248995,-534.19,0.00019342,2]
[364968654,1749364249005,-480.0,0.00019342,2]
[364968655,1749364249015,-480.0,0.00019342,2]
[364968656,1749364249028,-480.0,0.00019342,2]
[364968657,1749364249038,-480.0,0.00019342,2]
[364968658,1749364249048,-480.0,0.00019342,2]
[364968659,1749364249058,-480.0,0.00019342,2]
[364968660,1749364249068,-480.0,0.00019342,2]
[364968661,1749364249078,-820.55,0.00019342,2]
[364968662,1749364249088,-292.64940281,0.00019342,2]
[364968663,1749364249098,-1274.91,0.00019342,2]
[364968664,1749364249108,-480.0,0.00019342,2]
[364968665,1749364249118,-480.0,0.00019342,2]
[364968666,1749364249129,-449.15535119,0.00019342,2]
[364968667,1749364249138,-480.0,0.00019342,2]
[364968668,1749364249148,-480.0,0.00019342,2]
[364968669,1749364249158,-480.0,0.00019342,2]
[364968670,1749364249169,-480.0,0.00019342,2]
[364968671,1749364249180,-480.0,0.00019342,2]
[364968672,1749364249191,-643.03,0.00019342,2]
[364968673,1749364249200,-480.0,0.00019342,2]
[364968674,1749364249211,-480.0,0.00019342,2]
[364968675,1749364249220,-480.0,0.00019342,2]
[364968676,1749364249230,-480.0,0.00019342,2]
[364968677,1749364249242,-66789.99,0.00019342,2]
[364968678,1749364249252,-3935.55,0.00019342,2]
[364968679,1749364249262,-480.0,0.00019342,2]
[364968680,1749364249271,-480.0,0.00019342,2]
[364968681,1749364249282,-861.71,0.00019342,2]
[364968682,1749364249292,-480.0,0.00019342,2]
[364968683,1749364249302,-480.0,0.00019342,2]
[364968684,1749364249312,-684.62,0.00019342,2]
[364968685,1749364249321,-480.0,0.00019342,2]
[364968686,1749364249331,-480.0,0.00019342,2]
[364968687,1749364249341,-480.0,0.00019342,2]
[364968688,1749364249351,-480.0,0.00019342,2]
[364968689,1749364249362,-909.52,0.00019342,2]
[364968690,1749364249372,-2317.81,0.00019342,2]
[364968691,1749364249382,-480.0,0.00019342,2]
[364968692,1749364249392,-480.0,0.00019342,2]
[364968693,1749364249402,-480.0,0.00019342,2]
[364968694,1749364249411,-480.0,0.00019342,2]
[364968695,1749364249421,-480.0,0.00019342,2]
[364968696,1749364249431,-480.0,0.00019342,2]
[364968697,1749364249441,-480.0,0.00019342,2]
[364968698,1749364249451,-480.0,0.00019342,2]
[364968699,1749364249461,-480.0,0.00019342,2]
[364968700,1749364249470,-480.0,0.00019342,2]
[364968701,1749364249480,-480.0,0.00019342,2]
[364968702,1749364249491,-667.24,0.00019342,2]
[364968703,1749364249501,-547.29,0.00019342,2]
[364968704,1749364249511,-480.0,0.00019342,2]
[364968705,1749364249521,-480.0,0.00019342,2]
[364968706,1749364249531,-480.0,0.00019342,2]
[364968707,1749364249541,-480.0,0.00019342,2]
[364968708,1749364249551,-480.0,0.00019342,2]
[364968709,1749364249560,-480.0,0.00019342,2]
[364968710,1749364249570,-631.52,0.00019342,2]
[364968711,1749364249580,-726.85,0.00019342,2]
[364968712,1749364249590,-480.0,0.00019342,2]
[364968713,1749364249599,-480.0,0.00019342,2]
[364968714,1749364249609,-480.0,0.00019342,2]
[364968715,1749364249618,-5004.03,0.00019342,2]
[364968716,1749364249628,-480.0,0.00019342,2]
[364968717,1749364249638,-480.0,0.00019342,2]
[364968718,1749364249648,-480.0,0.00019342,2]
[364968719,1749364249658,-480.0,0.00019342,2]
[364968720,1749364249668,-512.77,0.00019342,2]
[364968721,1749364249678,-637.39,0.00019342,2]
[364968722,1749364249688,-480.0,0.00019342,2]
[364968723,1749364249698,-150.0,0.00019342,2]
[364968724,1749364249708,-4931.9619892,0.00019352,2]
[364968725,1749364249718,-288.3964525,0.00019356,2]
[364968726,1749364249728,-600.0,0.00019358,2]
[364968727,1749364249738,-150.0,0.00019367,2]
[364968728,1749364249748,-1000.0,0.00019368,2]
[364968729,1749364249758,-204.32788648,0.0001937,2]
[364968730,1749364249768,-200.0,0.0001937,2]
[364968731,1749364249778,-4351.4,0.00019371,2]
[364968732,1749364249788,-504.5961517,0.00019373,2]
[364968733,1749364249798,-156.28003717,0.00019373,2]
[364968734,1749364249809,-2212.62992227,0.00019381,2]
[364968735,1749364249819,-1000.0,0.00019382,2]
[364968736,1749364249829,-1000.0,0.00019384,2]
[364968737,1749364249839,-531.93487381,0.00019395,2]
[364968738,1749364249849,-505.33,0.000194,2]
[364968739,1749364249859,-170.63,0.000194,2]
[364968740,1749364249869,-454.71,0.000194,2]
[364968741,1749364249878,-150.0,0.000194,2]
[364968742,1749364249888,-150.0,0.000194,2]
[364968743,1749364249898,-67425.41466762,0.000194,2]
[364968744,1749364249908,-150.0,0.00019401,2]
[364968745,1749364249919,-1000.0,0.00019409,2]
[364968746,1749364249929,-500.0,0.00019412,2]
[364968747,1749364249939,-150.035,0.00019412,2]
[364968748,1749364249949,-150.108,0.00019412,2]
[364968749,1749364249959,-150.0,0.00019412,2]
[364968750,1749364249969,-150.117,0.00019412,2]
[364968751,1749364249979,-2212.62992227,0.00019424,2]
[364968752,1749364249990,-161.12719029,0.00019425,2]
[364968753,1749364250000,-4931.9619892,0.00019443,2]
[364968754,1749364250010,-2212.62992227,0.00019467,2]
[364968755,1749364250022,-531.93487381,0.00019479,2]
[364968756,1749364250032,-1548.8795,0.000195,2]
[364968757,1749364250041,-170.63,0.000195,2]
[364968758,1749364250051,-454.71,0.000195,2]
[364968759,1749364250063,-150.0,0.000195,2]
[364968760,1749364250073,-150.0,0.000195,2]
[364968761,1749364250083,-150.98,0.000195,2]
[364968762,1749364250094,-715.17,0.000195,2]
[364968763,1749364250103,-1163.18,0.000195,2]
[364968764,1749364250114,-454.71,0.000195,2]
[364968765,1749364250124,-170.63,0.000195,2]
[364968766,1749364250134,-1163.18,0.000195,2]
[364968767,1749364250144,-150.0,0.000195,2]
[364968768,1749364250155,-150.0,0.000195,2]
[364968769,1749364250165,-1163.18,0.000195,2]
[364968770,1749364250175,-170.63,0.000195,2]
[364968771,1749364250185,-454.71,0.000195,2]
[364968772,1749364250195,-150.0,0.000195,2]
[364968773,1749364250205,-150.0,0.000195,2]
[364968774,1749364250215,-150.0,0.000195,2]
[364968775,1749364250225,-2447.3854,0.000195,2]
[364968776,1749364250234,-1155.0813,0.000195,2]
[364968777,1749364250244,-185.83718691,0.00019503,2]
[364968778,1749364250253,-150.0,0.00019505,2]
[364968779,1749364250262,-6033.42921095,0.00019505,2]
[364968780,1749364250273,-1278.29,0.00019505,2]
[364968781,1749364250283,-1929.941956,0.00019506,2]
[364968782,1749364250293,-2233.853385,0.00019506,2]
[364968783,1749364250303,-480.0,0.00019506,2]
[364968784,1749364250313,-480.0,0.00019506,2]
[364968785,1749364250324,-480.0,0.00019506,2]
[364968786,1749364250334,-480.0,0.00019506,2]
[364968787,1749364250344,-480.0,0.00019506,2]
[364968788,1749364250355,-387.26363501,0.00019506,2]
[364968789,1749364250365,-480.0,0.00019506,2]
[364968790,1749364250374,-360.0,0.00019506,2]
[364968791,1749364250384,-480.0,0.00019506,2]
[364968792,1749364250395,-480.0,0.00019506,2]
[364968793,1749364250405,-480.0,0.00019506,2]
[364968794,1749364250415,-440.26224765,0.00019506,2]
[364968795,1749364250425,-480.0,0.00019506,2]
[364968796,1749364250435,-254.03332209,0.00019506,2]
[364968797,1749364250446,-480.0,0.00019506,2]
[364968798,1749364250456,-480.0,0.00019506,2]
[364968799,1749364250466,-480.0,0.00019506,2]
[364968800,1749364250475,-480.0,0.00019506,2]
[364968801,1749364250485,-208.54872478,0.00019506,2]
[364968802,1749364250496,-480.0,0.00019506,2]
[364968803,1749364250506,-634.26,0.00019506,2]
[364968804,1749364250516,-480.0,0.00019506,2]
[364968805,1749364250526,-1000.0,0.00019506,2]
[364968806,1749364250536,-480.0,0.00019506,2]
[364968807,1749364250546,-654.5,0.00019506,2]
[364968808,1749364250557,-480.0,0.00019506,2]
[364968809,1749364250567,-544.32347376,0.00019506,2]
[364968810,1749364250576,-480.0,0.00019506,2]
[364968811,1749364250586,-480.0,0.00019506,2]
[364968812,1749364250596,-344.8,0.00019506,2]
[364968813,1749364250606,-480.0,0.00019506,2]
[364968814,1749364250616,-480.0,0.00019506,2]
[364968815,1749364250626,-329.05616703,0.00019506,2]
[364968816,1749364250636,-480.0,0.00019506,2]
[364968817,1749364250647,-480.0,0.00019506,2]
[364968818,1749364250657,-615.82821067,0.00019506,2]
[364968819,1749364250666,-480.0,0.00019506,2]
[364968820,1749364250676,-724.24,0.00019506,2]
[364968821,1749364250686,-1052.94,0.00019506,2]
[364968822,1749364250695,-480.0,0.00019506,2]
[364968823,1749364250705,-480.0,0.00019506,2]
[364968824,1749364250715,-480.0,0.00019506,2]
[364968825,1749364250724,-480.0,0.00019506,2]
[364968826,1749364250735,-480.0,0.00019506,2]
[364968827,1749364250902,-480.0,0.00019506,2]
[364968828,1749364250913,-628.58004543,0.00019506,2]
[364968829,1749364250922,-589.8,0.00019506,2]
[364968830,1749364250932,-480.0,0.00019506,2]
[364968831,1749364250941,-395.0387124,0.00019506,2]
[364968832,1749364250950,-480.0,0.00019506,2]
[364968833,1749364250960,-480.0,0.00019506,2]
[364968834,1749364250969,-480.0,0.00019506,2]
[364968835,1749364250978,-480.0,0.00019506,2]
[364968836,1749364250987,-480.0,0.00019506,2]
[364968837,1749364250997,-480.0,0.00019506,2]
[364968838,1749364251006,-480.0,0.00019506,2]
[364968839,1749364251016,-4698.95,0.00019506,2]
[364968840,1749364251030,-480.0,0.00019506,2]
[364968841,1749364251040,-480.0,0.00019506,2]
[364968842,1749364251049,-885.82,0.00019506,2]
[364968843,1749364251058,-480.0,0.00019506,2]
[364968844,1749364251069,-480.0,0.00019506,2]
[364968845,1749364251079,-480.0,0.00019506,2]
[364968846,1749364251088,-695.25,0.00019506,2]
[364968847,1749364251098,-480.0,0.00019506,2]
[364968848,1749364251107,-480.0,0.00019506,2]
[364968849,1749364251117,-480.0,0.00019506,2]
[364968850,1749364251126,-531.88234171,0.00019506,2]
[364968851,1749364251136,-527.57,0.00019506,2]
[364968852,1749364251145,-480.0,0.00019506,2]
[364968853,1749364251154,-494.2,0.00019506,2]
[364968854,1749364251164,-551.2795062,0.00019506,2]
[364968855,1749364251173,-647.89,0.00019506,2]
[364968856,1749364251182,-480.0,0.00019506,2]
[364968857,1749364251192,-480.0,0.00019506,2]
[364968858,1749364251202,-480.0,0.00019506,2]
[364968859,1749364251211,-480.0,0.00019506,2]
[364968860,1749364251220,-335.59,0.00019506,2]
[364968861,1749364251230,-171.90511032,0.00019506,2]
[364968862,1749364251240,-480.0,0.00019506,2]
[364968863,1749364251249,-480.0,0.00019506,2]
[364968864,1749364251258,-1093.87,0.00019506,2]
[364968865,1749364251268,-1598.06,0.00019506,2]
[364968866,1749364251278,-480.0,0.00019506,2]
[364968867,1749364251287,-480.0,0.00019506,2]
[364968868,1749364251297,-589.27922236,0.00019506,2]
[364968869,1749364251307,-480.0,0.00019506,2]
[364968870,1749364251316,-2139.7,0.00019506,2]
[364968871,1749364251326,-480.0,0.00019506,2]
[364968872,1749364251336,-480.0,0.00019506,2]
[364968873,1749364251346,-480.0,0.00019506,2]
[364968874,1749364251356,-480.0,0.00019506,2]
[364968875,1749364251365,-480.0,0.00019506,2]
[364968876,1749364251375,-890.34,0.00019506,2]
[364968877,1749364251385,-480.0,0.00019506,2]
[364968878,1749364251394,-1984.18,0.00019506,2]
[364968879,1749364251404,-480.0,0.00019506,2]
[364968880,1749364251413,-480.0,0.00019506,2]
[364968881,1749364251422,-480.0,0.00019506,2]
[364968882,1749364251432,-1094.88,0.00019506,2]
[364968883,1749364251441,-530.22,0.00019506,2]
[364968884,1749364251452,-480.0,0.00019506,2]
[364968885,1749364251462,-480.0,0.00019506,2]
[364968886,1749364251471,-610.45362824,0.00019506,2]
[364968887,1749364251480,-480.0,0.00019506,2]
[364968888,1749364251490,-480.0,0.00019506,2]
[364968889,1749364251499,-4179.8,0.00019506,2]
[364968890,1749364251509,-1034.7,0.00019506,2]
[364968891,1749364251519,-480.0,0.00019506,2]
[364968892,1749364251528,-480.0,0.00019506,2]
[364968893,1749364251538,-480.0,0.00019506,2]
[364968894,1749364251547,-480.0,0.00019506,2]
[364968895,1749364251557,-480.0,0.00019506,2]
[364968896,1749364251566,-556.1657709,0.00019506,2]
[364968897,1749364251575,-480.0,0.00019506,2]
[364968898,1749364251585,-1937.29,0.00019506,2]
[364968899,1749364251594,-971.4,0.00019506,2]
[364968900,1749364251604,-480.0,0.00019506,2]
[364968901,1749364251614,-480.0,0.00019506,2]
[364968902,1749364251624,-1278.48,0.00019506,2]
[364968903,1749364251633,-3384.73,0.00019506,2]
[364968904,1749364251643,-480.0,0.00019506,2]
[364968905,1749364251652,-840.75,0.00019506,2]
[364968906,1749364251662,-1844.25,0.00019506,2]
[364968907,1749364251672,-304.12715389,0.00019506,2]
[364968908,1749364251681,-480.0,0.00019506,2]
[364968909,1749364251690,-480.0,0.00019506,2]
[364968910,1749364251700,-168.91753859,0.00019506,2]
[364968911,1749364251710,-480.0,0.00019506,2]
[364968912,1749364251719,-788.24,0.00019506,2]
[364968913,1749364251728,-480.0,0.00019506,2]
[364968914,1749364251739,-480.0,0.00019506,2]
[364968915,1749364251748,-480.0,0.00019506,2]
[364968916,1749364251757,-480.0,0.00019506,2]
[364968917,1749364251766,-480.0,0.00019506,2]
[364968918,1749364251775,-2296.57,0.00019506,2]
[364968919,1749364251785,-480.0,0.00019506,2]
[364968920,1749364251794,-245.28106377,0.00019506,2]
[364968921,1749364251803,-527.16,0.00019506,2]
[364968922,1749364251813,-451.8,0.00019506,2]
[364968923,1749364251822,-480.0,0.00019506,2]
[364968924,1749364251831,-1437.16,0.00019506,2]
[364968925,1749364251841,-480.0,0.00019506,2]
[364968926,1749364251850,-480.0,0.00019506,2]
[364968927,1749364251860,-480.0,0.00019506,2]
[364968928,1749364251869,-480.0,0.00019506,2]
[364968929,1749364251878,-320.85943505,0.00019506,2]
[364968930,1749364251888,-480.0,0.00019506,2]
[364968931,1749364251897,-820.55,0.00019506,2]
[364968932,1749364251906,-1274.91,0.00019506,2]
[364968933,1749364251915,-480.0,0.00019506,2]
[364968934,1749364251925,-480.0,0.00019506,2]
[364968935,1749364251936,-480.0,0.00019506,2]
[364968936,1749364251946,-480.0,0.00019506,2]
[364968937,1749364251956,-480.0,0.00019506,2]
[364968938,1749364251966,-480.0,0.00019506,2]
[364968939,1749364251975,-643.03,0.00019506,2]
[364968940,1749364251985,-480.0,0.00019506,2]
[364968941,1749364251995,-480.0,0.00019506,2]
[364968942,1749364252004,-480.0,0.00019506,2]
[364968943,1749364252014,-480.0,0.00019506,2]
[364968944,1749364252027,-611.61105342,0.00019506,2]
[364968945,1749364252036,-66789.99,0.00019506,2]
[364968946,1749364252045,-3935.55,0.00019506,2]
[364968947,1749364252055,-480.0,0.00019506,2]
[364968948,1749364252064,-480.0,0.00019506,2]
[364968949,1749364252074,-861.71,0.00019506,2]
[364968950,1749364252083,-480.0,0.00019506,2]
[364968951,1749364252093,-480.0,0.00019506,2]
[364968952,1749364252102,-684.62,0.00019506,2]
[364968953,1749364252112,-480.0,0.00019506,2]
[364968954,1749364252121,-480.0,0.00019506,2]
[364968955,1749364252131,-480.0,0.00019506,2]
[364968956,1749364252141,-480.0,0.00019506,2]
[364968957,1749364252150,-909.52,0.00019506,2]
[364968958,1749364252160,-2317.81,0.00019506,2]
[364968959,1749364252170,-605.82440526,0.00019506,2]
[364968960,1749364252180,-153.25,0.00019506,2]
[364968961,1749364252189,-480.0,0.00019506,2]
[364968962,1749364252199,-480.0,0.00019506,2]
[364968963,1749364252208,-480.0,0.00019506,2]
[364968964,1749364252217,-480.0,0.00019506,2]
[364968965,1749364252227,-480.0,0.00019506,2]
[364968966,1749364252236,-480.0,0.00019506,2]
[364968967,1749364252247,-480.0,0.00019506,2]
[364968968,1749364252257,-480.0,0.00019506,2]
[364968969,1749364252267,-480.0,0.00019506,2]
[364968970,1749364252276,-667.24,0.00019506,2]
[364968971,1749364252287,-547.29,0.00019506,2]
[364968972,1749364252296,-480.0,0.00019506,2]
[364968973,1749364252305,-480.0,0.00019506,2]
[364968974,1749364252315,-480.0,0.00019506,2]
[364968975,1749364252324,-480.0,0.00019506,2]
[364968976,1749364252333,-480.0,0.00019506,2]
[364968977,1749364252342,-480.0,0.00019506,2]
[364968978,1749364252351,-631.52,0.00019506,2]
[364968979,1749364252360,-726.85,0.00019506,2]
[364968980,1749364252370,-504.45449621,0.00019506,2]
[364968981,1749364252379,-308.60306314,0.00019506,2]
[364968982,1749364252389,-480.0,0.00019506,2]
[364968983,1749364252399,-5004.03,0.00019506,2]
[364968984,1749364252409,-480.0,0.00019506,2]
[364968985,1749364252419,-480.0,0.00019506,2]
[364968986,1749364252429,-480.0,0.00019506,2]
[364968987,1749364252439,-480.0,0.00019506,2]
[364968988,1749364252449,-512.77,0.00019506,2]
[364968989,1749364252460,-637.39,0.00019506,2]
[364968990,1749364252469,-202.0,0.0001951,2]
[364968991,1749364252478,-2212.62992227,0.00019511,2]
[364968992,1749364252488,-152.0,0.00019524,4]
[364968993,1749364252498,-4931.9619892,0.00019535,2]
[364968994,1749364252509,-2212.62992227,0.00019554,2]
[364968995,1749364252520,-531.93487381,0.00019563,2]
[364968996,1749364252530,-170.96194018,0.00019571,2]
[364968997,1749364252542,-184.68741889,0.00019587,2]
[364968998,1749364252552,-2212.62992227,0.00019597,2]
[364968999,1749364252563,-614.0,0.00019626,2]
[364969000,1749364252574,-4931.9619892,0.00019626,2]
[364969001,1749364252585,-2212.62992227,0.0001964,2]
[364969002,1749364252595,-531.93487381,0.00019647,2]
[364969003,1749364252606,-500.0,0.0001967,2]
[364969004,1749364252616,-500.0,0.0001967,2]
[364969005,1749364252627,-1278.29,0.0001967,2]
[364969006,1749364252638,-137971.79389321,0.00019671,2]
[364969007,1749364252648,-356.59238497,0.00019671,2]
[364969008,1749364252657,-236.61156385,0.00019671,2]
[364969009,1749364252666,-516.81371835,0.00019671,2]
[364969010,1749364252676,-480.0,0.00019671,2]
[364969011,1749364252688,-480.0,0.00019671,2]
[364969012,1749364252700,-480.0,0.00019671,2]
[364969013,1749364252711,-480.0,0.00019671,2]
[364969014,1749364252721,-381.66281272,0.00019671,2]
[364969015,1749364252731,-480.0,0.00019671,2]
[364969016,1749364252742,-480.0,0.00019671,2]
[364969017,1749364252753,-480.0,0.00019671,2]
[364969018,1749364252763,-405.39372908,0.00019671,2]
[364969019,1749364252772,-182.09439418,0.00019671,2]
[364969020,1749364252781,-220.33584,0.00019671,2]
[364969021,1749364252790,-480.0,0.00019671,2]
[364969022,1749364252799,-480.0,0.00019671,2]
[364969023,1749364252808,-480.0,0.00019671,2]
[364969024,1749364252817,-634.26,0.00019671,2]
[364969025,1749364252827,-480.0,0.00019671,2]
[364969026,1749364252837,-1000.0,0.00019671,2]
[364969027,1749364252849,-480.0,0.00019671,2]
[364969028,1749364252859,-654.5,0.00019671,2]
[364969029,1749364252868,-480.0,0.00019671,2]
[364969030,1749364252877,-480.0,0.00019671,2]
[364969031,1749364252888,-480.0,0.00019671,2]